bitfinex-derivatives/quotes_ETHF0:USTF0_20260316
["timestamp","ask_amount","ask_price","bid_price","bid_amount"]
[1773653216177,0.23134552,2253.1,2252.4,8.473812]
[1773653216378,9.055,2253.0,2252.4,8.473812]
[1773653216672,9.054,2253.0,2252.4,8.473812]
[1773653217175,0.07725942,2253.9,2252.6,17.01588653]
[1773653217476,8.30387199,2254.6,2253.6,8.13859653]
[1773653217871,8.30387199,2254.5,2253.8,8.13859653]
[1773653218067,8.30387199,2254.5,2253.9,13.53537479]
[1773653218271,8.30387199,2254.5,2254.0,13.53537479]
[1773653218469,8.30387199,2255.0,2254.1,5.39677826]
[1773653218670,8.30387199,2254.5,2254.2,5.39677826]
[1773653218878,8.30387199,2254.5,2253.3,8.13859653]
[1773653219080,8.30387199,2254.5,2253.5,8.13859653]
[1773653219279,8.30387199,2254.5,2253.7,8.13859653]
[1773653219474,6.6576,2255.0,2254.1,8.13859653]
[1773653219683,1.59633544,2256.0,2254.3,8.13859653]
[1773653219891,8.30387199,2255.8,2254.5,8.13859653]
[1773653220190,8.30387199,2255.6,2254.6,13.41772182]
[1773653220385,8.30387199,2255.6,2254.7,5.27912529]
[1773653220582,8.30387199,2255.3,2254.8,5.27912529]
[1773653220780,8.30387199,2255.2,2253.9,8.13859653]
[1773653220978,11.40847199,2255.2,2254.1,8.13859653]
[1773653221187,8.30387199,2255.1,2254.3,8.13859653]
[1773653221388,8.59578163,2255.1,2254.3,8.13859653]
[1773653221584,8.30387199,2254.8,2254.4,5.25583318]
[1773653221785,8.30387199,2255.8,2254.6,8.13859653]
[1773653221986,1.59633544,2256.0,2254.6,8.13859653]
[1773653222285,8.30387199,2256.9,2255.2,8.13859653]
[1773653222480,8.30387199,2256.4,2255.3,5.25036334]
[1773653222685,8.30387199,2256.3,2255.1,8.13859653]
[1773653222892,8.30387199,2256.1,2254.9,8.13859653]
[1773653224584,8.30387199,2256.1,2255.1,8.13859653]
[1773653224988,8.30387199,2256.1,2255.3,8.13859653]
[1773653225789,9.90020743,2256.1,2254.5,8.13859653]
[1773653226090,8.30387199,2255.9,2254.7,8.13859653]
[1773653226592,8.30387199,2255.7,2254.7,8.13859653]
[1773653229193,8.30387199,2255.5,2254.3,8.13859653]
[1773653229892,1.59633544,2255.6,2254.3,8.13859653]
[1773653229893,8.30387199,2255.2,2254.3,8.13859653]
[1773653230898,8.30387199,2255.2,2254.0,8.13859653]
[1773653231093,8.30387199,2255.1,2254.0,8.13859653]
[1773653237892,1.59633544,2255.6,2254.4,8.13859653]
[1773653237893,9.196,2255.6,2254.4,8.13859653]
[1773653238098,8.30387199,2255.5,2254.6,8.13859653]
[1773653238597,8.30387199,2255.5,2254.5,9.54674]
[1773653238598,8.30387199,2255.5,2254.8,8.13859653]
[1773653238903,8.30387199,2256.1,2254.8,8.13859653]
[1773653239096,8.30387199,2256.1,2255.0,8.13859653]
[1773653239903,8.30387199,2256.4,2255.2,8.13859653]
[1773653241497,8.30387199,2256.4,2255.0,9.33]
[1773653241498,8.30387199,2258.0,2256.6,8.13859653]
[1773653241703,8.30387199,2257.6,2256.6,8.13859653]
[1773653242404,9.07284547,2257.3,2256.0,8.90122942]
[1773653242605,9.07284547,2257.0,2256.0,8.90122942]
[1773653244294,9.07284547,2256.4,2255.4,8.90122942]
[1773653244495,9.07284547,2256.7,2255.4,8.90122942]
[1773653244801,9.07284547,2256.4,2255.4,8.90122942]
[1773653245202,9.07284547,2257.0,2255.6,8.90122942]
[1773653245705,9.07284547,2256.7,2255.6,8.90122942]
[1773653245997,8.35239077,2256.7,2255.7,0.69274491]
[1773653246194,8.35239077,2256.7,2255.8,0.69274491]
[1773653246398,8.35239077,2256.7,2255.9,0.69274491]
[1773653246604,8.35239077,2256.7,2256.0,0.69274491]
[1773653246805,8.35239077,2256.7,2256.1,0.69274491]
[1773653247102,8.35239077,2256.7,2255.6,8.90122942]
[1773653247298,8.35239077,2256.7,2255.7,5.23202337]
[1773653247493,8.35239077,2256.7,2255.6,8.90122942]
[1773653247699,8.35239077,2256.7,2255.7,5.23276494]
[1773653247899,8.35239077,2256.7,2255.6,8.90122942]
[1773653248106,8.35239077,2256.7,2255.7,5.23277334]
[1773653248294,8.35239077,2256.7,2255.6,8.90122942]
[1773653248494,8.35239077,2256.7,2255.7,14.13522995]
[1773653248800,8.35239077,2256.7,2255.9,8.90122942]
[1773653249299,8.35239077,2256.7,2255.7,8.90122942]
[1773653249699,8.35239077,2256.7,2255.5,8.90122942]
[1773653249904,8.35239077,2256.7,2255.6,14.13738757]
[1773653250201,8.35239077,2256.7,2255.7,5.23615815]
[1773653250400,8.35239077,2256.7,2255.6,8.90122942]
[1773653250703,8.35239077,2256.7,2255.7,5.24440326]
[1773653250899,9.07284547,2256.4,2255.6,8.90122942]
[1773653251094,9.07284547,2256.4,2255.7,5.24637713]
[1773653251298,9.07284547,2256.4,2255.6,8.90122942]
[1773653251499,9.07284547,2256.4,2255.7,5.24675758]
[1773653251706,9.07284547,2256.1,2255.1,8.90122942]
[1773653251907,9.07284547,2256.1,2255.2,14.14520025]
[1773653252106,9.07284547,2256.1,2255.2,8.90122942]
[1773653253100,9.07284547,2256.1,2254.8,0.2217]
[1773653253101,9.07284547,2256.1,2255.0,18.23622942]
[1773653253302,9.07284547,2255.8,2255.1,5.24768671]
[1773653253502,9.07284547,2255.8,2255.0,8.90122942]
[1773653253804,9.07284547,2255.8,2255.1,5.24783435]
[1773653254004,9.07284547,2255.8,2255.0,8.90122942]
[1773653254305,9.07284547,2255.8,2255.1,5.24845131]
[1773653254506,9.07284547,2255.8,2255.0,8.90122942]
[1773653254707,9.07284547,2255.8,2255.1,5.24843265]
[1773653255002,9.07284547,2255.8,2254.8,8.90122942]
[1773653255202,9.07284547,2255.5,2254.8,18.24022942]
[1773653255706,9.07284547,2255.5,2254.8,8.90122942]
[1773653256102,9.07284547,2255.5,2254.5,8.90122942]
[1773653256306,9.07284547,2255.5,2254.6,5.24973628]
[1773653256605,9.07284547,2255.5,2254.7,14.1509657]
[1773653256805,9.07284547,2255.5,2254.8,14.1509657]
[1773653257006,9.07284547,2255.5,2254.8,8.90122942]
[1773653259104,9.07284547,2255.5,2254.9,0.57339829]
[1773653259404,9.07284547,2255.5,2255.0,0.57339829]
[1773653259604,9.07284547,2255.5,2255.1,0.57339829]
[1773653259805,9.07284547,2255.5,2255.2,0.57339829]
[1773653260002,9.07284547,2255.7,2254.8,8.90122942]
[1773653260208,9.07284547,2255.7,2255.0,8.90122942]
[1773653261111,9.07284547,2255.7,2255.1,8.90122942]
[1773653262908,9.07284547,2255.7,2255.1,18.24922942]
[1773653264413,9.07284547,2255.7,2255.2,14.14862975]
[1773653264715,9.07284547,2255.7,2255.2,8.90122942]
[1773653265117,5.15579772,2256.8,2255.4,8.90122942]
[1773653265315,5.15579772,2256.8,2255.6,8.90122942]
[1773653265512,5.15579772,2256.8,2255.7,8.90122942]
[1773653266319,5.15579772,2256.8,2255.8,5.24719071]
[1773653266617,5.15579772,2256.8,2256.0,8.90122942]
[1773653267417,5.15579772,2256.8,2256.2,8.90122942]
[1773653267815,5.15579772,2256.8,2255.8,8.90122942]
[1773653268017,5.15579772,2256.8,2256.0,8.90122942]
[1773653268216,5.15579772,2256.8,2256.1,5.24702932]
[1773653268417,5.15579772,2256.8,2256.0,8.90122942]
[1773653269020,5.15579772,2256.8,2256.0,18.25522942]
[1773653269221,5.15579772,2256.8,2255.7,8.90122942]
[1773653269420,5.15579772,2256.8,2255.9,8.90122942]
[1773653269821,0.22122288,2257.0,2256.1,8.90122942]
[1773653269822,5.49094152,2257.0,2256.1,8.90122942]
[1773653270728,5.49094152,2257.0,2255.9,18.25522942]
[1773653270924,5.49094152,2257.0,2256.0,5.24646584]
[1773653271125,5.49094152,2257.0,2256.0,8.90122942]
[1773653271925,5.49094152,2257.0,2256.1,0.56215706]
[1773653272123,5.49094152,2257.0,2255.9,8.358739]
[1773653272323,5.49094152,2257.0,2256.0,5.24904236]
[1773653272519,5.49094152,2257.0,2256.1,8.358739]
[1773653275527,5.26971864,2257.0,2256.1,8.358739]
[1773653277329,5.26971864,2257.0,2256.3,8.84263063]
[1773653278027,4.49302908,2257.3,2256.5,8.84263063]
[1773653278230,4.49302908,2257.3,2256.6,8.84263063]
[1773653278424,4.75331694,2257.7,2256.3,8.84263063]
[1773653278628,4.46325327,2257.5,2256.5,8.84263063]
[1773653278828,4.46325327,2257.5,2256.5,18.19263063]
[1773653279328,4.46325327,2257.5,2256.7,8.84263063]
[1773653280124,4.38457152,2257.3,2256.2,8.84263063]
[1773653280324,4.38457152,2257.3,2256.4,8.84263063]
[1773653280930,4.38457152,2257.3,2256.5,8.84263063]
[1773653281330,4.19614377,2257.4,2256.5,8.84263063]
[1773653284133,4.19614377,2257.4,2256.6,9.38718864]
[1773653284339,4.19614377,2257.4,2256.7,0.54455801]
[1773653284535,4.19614377,2257.4,2256.8,0.54455801]
[1773653284725,4.19614377,2257.4,2256.9,0.54455801]
[1773653284925,4.19614377,2257.4,2255.9,3.64992706]
[1773653285129,4.19614377,2257.4,2256.1,8.84263063]
[1773653285435,4.19614377,2257.4,2256.3,8.84263063]
[1773653285634,4.19614377,2257.4,2256.5,8.84263063]
[1773653285934,4.19614377,2257.4,2256.6,9.38712532]
[1773653286136,4.19614377,2257.4,2256.7,0.54449469]
[1773653286329,4.19614377,2257.4,2256.8,0.54449469]
[1773653286530,4.19614377,2257.4,2256.9,0.54449469]
[1773653286828,4.08827345,2257.2,2255.9,8.84263063]
[1773653287033,4.05928123,2256.9,2256.1,8.84263063]
[1773653287238,4.05928123,2256.9,2256.2,0.54476654]
[1773653287429,4.05928123,2256.9,2256.3,0.54476654]
[1773653287739,4.05928123,2256.9,2256.4,0.54476654]
[1773653287931,4.05928123,2256.9,2256.1,8.84263063]
[1773653291738,4.27668201,2256.9,2256.1,8.84263063]
[1773653297041,0.21740078,2256.9,2256.1,8.84263063]
[1773653297338,3.73699118,2257.4,2256.3,8.84263063]
[1773653297544,3.73699118,2257.4,2256.5,8.84263063]
[1773653299437,3.95957002,2257.4,2256.5,8.84263063]
[1773653301442,3.95957002,2257.4,2256.6,5.1501379]
[1773653301642,3.95957002,2257.4,2256.7,8.84263063]
[1773653303949,3.95957002,2257.4,2256.3,8.23682393]
[1773653304248,3.95957002,2257.4,2256.5,8.23682393]
[1773653307146,3.95957002,2257.4,2256.6,5.11082093]
[1773653307346,3.95957002,2257.4,2256.5,8.23682393]
[1773653307542,3.95957002,2257.4,2256.7,8.23682393]
[1773653307748,0.22257884,2257.4,2256.7,8.23682393]
[1773653307943,0.36718697,2257.7,2256.9,8.23682393]
[1773653308154,4.09924855,2257.7,2256.9,8.23682393]
[1773653308749,4.02212525,2257.7,2256.9,8.23682393]
[1773653309650,4.46971413,2257.7,2256.7,8.23682393]
[1773653310355,4.46971413,2257.7,2256.3,8.23682393]
[1773653310356,4.13349151,2257.4,2256.3,8.23682393]
[1773653310554,4.13349151,2257.4,2256.5,8.23682393]
[1773653310756,0.22145,2257.5,2256.5,8.23682393]
[1773653311055,4.41900806,2257.5,2256.5,8.23682393]
[1773653313155,0.0771151,2257.9,2256.7,8.23682393]
[1773653313156,5.15933028,2257.9,2256.7,8.23682393]
[1773653313663,5.15933028,2257.9,2256.8,8.23682393]
[1773653314051,0.22149,2257.1,2256.2,3.66198968]
[1773653314251,0.2215,2256.9,2255.7,8.67764631]
[1773653314655,0.19207888,2256.8,2255.7,8.67764631]
[1773653314852,0.19207888,2256.3,2255.7,8.67764631]
[1773653315057,9.21907888,2256.3,2255.7,8.67764631]
[1773653315253,5.75272669,2256.2,2255.7,8.67764631]
[1773653315559,0.9975363,2256.1,2255.7,8.67764631]
[1773653315856,5.75272669,2256.0,2254.4,8.50994989]
[1773653316052,5.75272669,2255.9,2255.1,8.50994989]
[1773653316255,0.9975363,2256.2,2255.1,8.50994989]
[1773653316454,5.77407038,2256.1,2255.3,8.50994989]
[1773653316759,7.24369619,2256.1,2255.3,8.50994989]
[1773653317063,5.77407038,2256.0,2255.4,8.50118966]
[1773653317561,7.21320142,2256.0,2255.5,8.50118966]
[1773653317859,5.77407038,2255.9,2255.5,8.50118966]
[1773653318060,5.77407038,2255.9,2255.6,8.49687487]
[1773653318461,5.77407038,2255.9,2255.6,12.13387683]
[1773653318762,7.25413041,2255.9,2255.4,8.46552494]
[1773653318965,1.67049363,2256.2,2255.4,8.46552494]
[1773653319164,5.87733107,2256.1,2255.4,8.46552494]
[1773653319561,5.87733107,2256.1,2255.6,8.46552494]
[1773653319966,7.30717265,2256.1,2255.6,8.46552494]
[1773653320165,7.28200184,2256.0,2255.6,8.46552494]
[1773653320461,1.62584898,2256.2,2255.6,8.46552494]
[1773653320662,7.0128679,2256.1,2255.7,8.60795243]
[1773653320863,5.8735783,2256.0,2255.7,8.60795243]
[1773653321059,5.8735783,2256.0,2255.7,7.40780597]
[1773653321667,5.8735783,2256.0,2255.4,8.23682393]
[1773653321867,0.22117821,2256.2,2255.4,8.23682393]
[1773653322069,5.87208647,2256.2,2255.4,8.23682393]
[1773653322367,8.140059,2256.2,2255.5,8.23682393]
[1773653322558,5.87208647,2256.1,2255.5,8.23682393]
[1773653322762,8.15274237,2256.1,2255.6,8.23682393]
[1773653322962,5.87208647,2256.0,2255.6,8.23682393]
[1773653323766,8.10185304,2256.0,2255.6,8.23682393]
[1773653323965,2.22976657,2256.0,2255.6,8.23682393]
[1773653324267,5.86950479,2255.9,2255.6,8.23682393]
[1773653324468,2.19946233,2256.1,2255.6,8.23682393]
[1773653324668,5.86836883,2256.0,2255.6,8.23682393]
[1773653325569,8.03533077,2256.0,2255.6,8.23682393]
[1773653325770,5.86836883,2255.9,2255.6,8.23682393]
[1773653325966,5.86836883,2255.9,2255.6,11.87382589]
[1773653326371,5.86836883,2255.9,2255.7,8.23682393]
[1773653326575,2.13684868,2256.1,2255.7,8.23682393]
[1773653326873,5.86638704,2256.0,2255.7,8.23682393]
[1773653327073,7.97176416,2256.0,2254.9,8.23682393]
[1773653327266,5.86638704,2255.9,2255.3,8.23682393]
[1773653327467,11.16037712,2255.8,2255.3,8.23682393]
[1773653327671,11.16037712,2255.8,2255.5,8.23682393]
[1773653327871,9.055,2255.8,2255.5,8.23682393]
[1773653328273,9.055,2255.8,2255.6,8.23682393]
[1773653328875,9.055,2255.8,2254.6,8.23682393]
[1773653329075,9.055,2255.8,2255.0,8.23682393]
[1773653329477,9.055,2255.8,2255.3,8.23682393]
[1773653329978,9.055,2255.8,2255.5,8.23682393]
[1773653330679,9.055,2255.8,2255.6,8.23682393]
[1773653331275,9.055,2255.8,2255.6,11.87382589]
[1773653331677,9.055,2255.8,2254.5,10.95335209]
[1773653331678,3.70940764,2256.3,2255.8,8.23682393]
[1773653331878,9.065,2256.5,2255.8,8.23682393]
[1773653332179,9.065,2256.5,2256.1,8.90960624]
[1773653332379,17.46450089,2256.5,2256.1,8.19160624]
[1773653332682,8.39950089,2256.4,2256.1,8.19160624]
[1773653332880,8.39950089,2256.4,2256.1,11.8286082]
[1773653333079,8.39950089,2256.4,2256.1,7.51008642]
[1773653333277,8.39950089,2256.4,2255.9,8.90960624]
[1773653333979,9.28399008,2256.5,2256.1,8.90960624]
[1773653334181,17.68349097,2256.5,2256.1,8.90960624]
[1773653334682,9.67444889,2256.4,2256.1,8.90960624]
[1773653334980,9.67444889,2256.4,2256.1,12.5466082]
[1773653335781,18.95843897,2256.5,2256.2,3.63700196]
[1773653335983,18.95843897,2256.5,2256.1,8.90960624]
[1773653336281,18.95843897,2256.5,2256.2,3.63700196]
[1773653336584,9.67444889,2256.4,2256.2,3.47381308]
[1773653337379,9.67444889,2256.4,2256.0,9.8687357]
[1773653337783,9.67444889,2256.4,2256.1,3.47381308]
[1773653338284,9.67444889,2256.4,2256.2,3.47381308]
[1773653338480,9.28399008,2256.5,2256.2,13.34254878]
[1773653338679,9.67444889,2256.7,2256.3,9.8687357]
[1773653339278,12.7959024,2256.8,2256.4,3.47381308]
[1773653339481,9.096,2256.8,2256.5,9.8687357]
[1773653339983,9.096,2256.8,2256.7,3.47381308]
[1773653340185,9.096,2256.8,2256.6,9.8687357]
[1773653340380,9.096,2256.8,2256.7,3.47381308]
[1773653340880,9.67444889,2256.7,2255.8,9.8687357]
[1773653342586,9.67444889,2256.6,2255.8,9.8687357]
[1773653343779,9.67444889,2256.5,2255.8,9.8687357]
[1773653343984,9.67444889,2256.3,2255.8,9.8687357]
[1773653344186,5.8177712,2256.2,2255.8,7.52180764]
[1773653344488,15.49222009,2256.2,2255.8,7.52180764]
[1773653344689,5.8177712,2256.1,2255.8,7.52180764]
[1773653345391,15.49222009,2256.1,2255.8,7.52180764]
[1773653345592,5.81779569,2256.0,2255.3,9.8687357]
[1773653346390,15.49224458,2256.0,2255.3,9.8687357]
[1773653346691,5.81779569,2255.9,2255.3,9.8687357]
[1773653347486,13.37435129,2256.3,2255.3,9.8687357]
[1773653347792,3.6999024,2256.1,2255.3,9.8687357]
[1773653347991,13.37435129,2256.1,2255.3,9.8687357]
[1773653348194,9.67444889,2256.1,2255.3,9.8687357]
[1773653348692,9.67444889,2256.0,2255.3,9.8687357]
[1773653349587,9.67444889,2255.9,2255.3,9.8687357]
[1773653353105,18.88544889,2255.8,2255.3,9.8687357]
[1773653353293,9.67444889,2255.7,2255.3,9.8687357]
[1773653354392,18.88544889,2255.8,2255.3,9.8687357]
[1773653354991,9.67444889,2255.7,2255.3,9.8687357]
[1773653355194,18.88544889,2255.8,2255.3,9.8687357]
[1773653357600,13.37435129,2256.1,2255.3,9.8687357]
[1773653357795,13.37435129,2256.0,2255.3,9.8687357]
[1773653358897,3.6999024,2256.0,2255.3,9.8687357]
[1773653359299,3.9252241,2256.1,2255.3,9.8687357]
[1773653359496,0.2253217,2256.1,2255.3,9.8687357]
[1773653359703,5.69758354,2256.1,2255.3,9.8687357]
[1773653360602,15.37203243,2256.1,2255.3,9.8687357]
[1773653360798,9.67444889,2255.9,2255.3,9.8687357]
[1773653360999,3.6999024,2255.9,2255.3,9.8687357]
[1773653361204,3.6999024,2256.0,2255.3,9.8687357]
[1773653361402,13.37435129,2256.1,2255.3,9.8687357]
[1773653361798,9.67444889,2256.1,2255.3,9.8687357]
[1773653364905,13.37435129,2256.1,2255.3,9.8687357]
[1773653365107,9.62303362,2256.0,2255.3,9.8687357]
[1773653365710,9.62303362,2255.8,2255.1,9.37153026]
[1773653366506,9.62303362,2255.7,2255.1,9.37153026]
[1773653367009,10.60633315,2255.7,2255.1,9.37153026]
[1773653368108,10.60633315,2255.7,2254.9,9.37153026]
[1773653368311,9.62303362,2255.3,2254.9,9.37153026]
[1773653369715,11.21634139,2255.3,2254.2,9.37153026]
[1773653369916,9.62303362,2255.2,2254.2,9.37153026]
[1773653370108,9.62303362,2255.0,2253.8,9.37153026]
[1773653370312,9.62303362,2254.9,2253.8,9.37153026]
[1773653370513,9.62303362,2254.9,2253.9,9.37153026]
[1773653371006,9.62303362,2254.6,2253.9,9.37153026]
[1773653371206,9.62303362,2254.5,2253.9,9.37153026]
[1773653373609,10.01979635,2254.5,2253.9,9.37153026]
[1773653376017,10.01979635,2254.5,2253.5,9.33354084]
[1773653376210,9.62303362,2255.0,2253.7,9.33354084]
[1773653376410,9.62303362,2254.7,2253.7,9.33354084]
[1773653376611,10.01742025,2254.7,2253.7,9.33354084]
[1773653380816,10.23753838,2254.7,2253.7,9.33354084]
[1773653381015,10.01742025,2254.7,2253.9,8.66240642]
[1773653381216,9.62303362,2255.2,2254.1,10.25571419]
[1773653381413,15.18965628,2256.1,2255.1,1.59330777]
[1773653381618,9.62303362,2255.9,2255.2,4.96250402]
[1773653382215,13.31633585,2255.8,2255.2,4.96250402]
[1773653382413,9.62303362,2255.8,2255.2,4.96250402]
[1773653382619,9.62303362,2256.1,2255.2,4.96250402]
[1773653384617,9.62303362,2256.1,2255.3,5.68691012]
[1773653385016,13.31633585,2256.0,2255.3,5.68691012]
[1773653385220,9.62303362,2256.0,2255.3,5.68691012]
[1773653385420,9.62303362,2255.9,2255.3,5.68691012]
[1773653386514,9.62303362,2255.8,2255.1,9.433]
[1773653386713,9.62303362,2255.8,2255.2,5.56790912]
[1773653387527,9.62303362,2255.7,2255.2,5.56790912]
[1773653388021,9.62303362,2255.6,2255.2,5.56790912]
[1773653388222,9.62303362,2256.1,2255.0,14.93155974]
[1773653388422,9.62303362,2256.1,2255.1,5.49555974]
[1773653388619,9.62303362,2255.8,2255.1,5.49555974]
[1773653389422,9.62303362,2255.7,2255.1,5.49555974]
[1773653390226,9.62303362,2255.7,2254.9,5.42367729]
[1773653392126,9.62303362,2256.7,2255.1,5.50158629]
[1773653392323,9.21535396,2256.5,2255.1,5.50158629]
[1773653392531,9.21535396,2256.3,2255.1,5.50158629]
[1773653395833,9.61423479,2256.3,2255.1,5.50158629]
[1773653397139,9.61423479,2256.3,2255.3,3.93498127]
[1773653397334,9.21535396,2256.3,2255.3,3.93498127]
[1773653398239,9.21535396,2256.3,2255.5,3.89747252]
[1773653398739,9.60677612,2256.3,2255.5,3.89747252]
[1773653400035,9.34057271,2256.2,2255.5,3.89747252]
[1773653400234,9.34057271,2256.2,2255.3,3.81940955]
[1773653401341,9.34057271,2256.2,2254.9,0.2217]
[1773653401342,9.34057271,2256.2,2255.0,3.77446853]
[1773653403444,5.34500954,2256.1,2255.0,3.77446853]
[1773653403645,9.34057271,2256.0,2255.0,3.77446853]
[1773653407651,5.35695211,2255.9,2254.4,3.79136512]
[1773653407948,9.34057271,2255.8,2254.4,3.79136512]
[1773653408150,9.34057271,2255.6,2254.4,3.79136512]
[1773653408551,9.34057271,2255.6,2254.3,3.97798839]
[1773653409450,9.508,2255.7,2254.3,3.97798839]
[1773653409451,9.34057271,2255.4,2254.3,3.97798839]
[1773653411251,5.37782098,2255.3,2254.3,3.97798839]
[1773653411451,9.34057271,2255.2,2254.3,3.97798839]
[1773653412148,14.71751091,2255.1,2254.3,3.75623839]
[1773653412354,9.34057271,2254.9,2254.3,3.75623839]
[1773653412554,9.34057271,2254.9,2253.9,3.59226068]
[1773653426462,9.34057271,2254.9,2254.1,2.9066565]
[1773653427758,9.34057271,2254.9,2253.9,2.91247363]
[1773653428159,9.34057271,2254.9,2253.6,2.87971499]
[1773653428365,8.63993876,2254.7,2253.6,2.87971499]
[1773653428560,8.63993876,2254.7,2253.8,2.87971499]
[1773653434660,8.63993876,2254.7,2253.7,0.22182]
[1773653434966,8.63993876,2254.7,2253.7,2.82394684]
[1773653438568,8.63993876,2254.5,2253.7,0.22182]
[1773653438969,8.63993876,2254.5,2253.6,2.45405967]
[1773653439564,8.63993876,2254.5,2253.7,0.22182]
[1773653439761,8.63993876,2254.5,2253.7,2.62765719]
[1773653450071,8.63993876,2254.5,2253.7,0.22182]
[1773653450267,3.94022716,2254.8,2253.7,0.22182]
[1773653450268,8.63993876,2254.3,2253.7,0.22182]
[1773653450872,8.63993876,2254.3,2253.7,2.41771333]
[1773653451478,8.63993876,2254.3,2253.7,0.22182]
[1773653451876,8.63993876,2254.3,2253.5,2.16565041]
[1773653454878,8.63993876,2254.3,2253.8,0.98412804]
[1773653457687,8.63993876,2254.3,2253.6,0.98412804]
[1773653458188,8.63993876,2254.3,2253.4,3.99278287]
[1773653458390,8.42038521,2253.9,2253.0,3.96326867]
[1773653458586,8.42038521,2253.9,2253.0,0.98412804]
[1773653459187,8.42038521,2253.9,2253.0,4.05757489]
[1773653459591,5.38796453,2253.8,2253.0,4.05757489]
[1773653459891,8.42038521,2253.7,2253.0,4.05757489]
[1773653460289,8.42038521,2253.7,2253.1,3.04207248]
[1773653460892,8.42038521,2253.7,2253.0,0.98412804]
[1773653461087,8.24288521,2253.7,2253.0,0.98412804]
[1773653461293,5.38657356,2253.6,2252.9,0.98412804]
[1773653461494,9.40451325,2253.5,2252.6,4.44754724]
[1773653461795,8.42038521,2253.3,2252.6,0.98412804]
[1773653461990,8.42038521,2253.0,2252.2,3.2430465]
[1773653462191,8.42038521,2252.8,2252.1,4.22717454]
[1773653462389,8.42038521,2252.8,2252.3,0.98412804]
[1773653462589,8.42038521,2252.8,2252.5,0.98412804]
[1773653462790,8.42038521,2252.8,2252.3,3.46512477]
[1773653463092,0.42731616,2253.6,2252.7,6.80772601]
[1773653463288,8.42038521,2253.5,2253.0,0.98412804]
[1773653463489,8.42038521,2253.5,2253.2,0.98412804]
[1773653463691,8.42038521,2253.5,2253.0,0.98412804]
[1773653464996,8.42038521,2253.5,2253.0,8.28275201]
[1773653468701,8.42038521,2253.5,2253.0,7.97516698]
[1773653470092,8.42038521,2253.5,2253.0,6.99103894]
[1773653470304,8.42038521,2253.5,2253.1,0.98412804]
[1773653476206,8.42038521,2253.5,2253.3,0.98412804]
[1773653476402,8.42038521,2253.5,2253.0,0.98412804]
[1773653476604,7.74032001,2253.5,2253.3,0.98412804]
[1773653476906,5.3933919,2253.5,2253.3,0.98412804]
[1773653477107,8.42038521,2254.3,2253.3,0.98412804]
[1773653477308,8.42038521,2254.1,2253.5,0.98412804]
[1773653477510,8.42038521,2254.1,2253.9,0.98412804]
[1773653478010,8.42038521,2254.1,2253.7,9.63849684]
[1773653479511,8.42038521,2254.1,2253.8,0.98412804]
[1773653479811,8.42038521,2254.1,2253.8,9.63849684]
[1773653480011,8.42038521,2254.1,2253.8,1.2505067]
[1773653480409,8.42038521,2254.1,2253.6,9.63849684]
[1773653480605,8.42038521,2254.1,2253.6,0.98412804]
[1773653480810,8.42038521,2254.1,2253.6,9.63849684]
[1773653481216,8.42038521,2254.1,2253.8,0.26637866]
[1773653482217,8.42038521,2254.1,2253.6,0.98412804]
[1773653484113,8.42038521,2254.1,2253.4,8.73447046]
[1773653484308,8.42038521,2254.1,2253.3,9.7185985]
[1773653484714,8.42038521,2254.1,2253.3,19.1445985]
[1773653484913,10.05834114,2254.4,2252.9,18.16147046]
[1773653484914,8.60779346,2253.7,2252.9,18.16147046]
[1773653485411,8.60779346,2253.7,2252.8,0.98412804]
[1773653485615,8.60779346,2253.3,2252.6,19.1465985]
[1773653485813,8.60779346,2253.3,2252.6,9.7185985]
[1773653486016,8.60779346,2253.3,2252.6,19.1475985]
[1773653486209,8.60779346,2253.3,2252.6,9.429]
[1773653486918,8.60779346,2253.3,2252.6,9.431]
[1773653487119,8.60779346,2253.3,2252.7,8.73447046]
[1773653491123,8.60779346,2253.3,2252.9,8.73447046]
[1773653491621,8.60779346,2253.3,2252.8,18.17547046]
[1773653491824,8.60779346,2253.3,2252.8,18.17747046]
[1773653492126,8.60779346,2253.3,2252.8,9.443]
[1773653492625,8.60779346,2253.3,2252.3,18.17947046]
[1773653492829,8.60779346,2253.3,2252.4,9.445]
[1773653493527,8.60779346,2253.2,2252.4,18.17947046]
[1773653493727,8.60779346,2253.2,2252.5,8.73447046]
[1773653501532,8.60779346,2253.2,2252.7,8.73447046]
[1773653501731,8.60779346,2253.2,2252.3,8.73447046]
[1773653501932,8.60779346,2253.2,2252.5,8.73447046]
[1773653503930,8.60779346,2253.2,2252.4,9.483]
[1773653504136,8.60779346,2253.2,2252.4,9.494]
[1773653504332,8.60779346,2253.2,2252.3,8.73447046]
[1773653504533,8.60779346,2253.2,2252.4,18.22947046]
[1773653504735,8.60779346,2253.2,2252.5,9.497]
[1773653505532,8.60779346,2253.2,2252.1,8.73447046]
[1773653507337,8.60779346,2253.0,2252.1,8.73447046]
[1773653507741,8.60779346,2253.0,2252.2,9.51]
[1773653509135,8.60779346,2253.0,2252.2,9.514]
[1773653510239,8.60779346,2253.0,2252.1,8.73447046]
[1773653510435,8.60779346,2253.0,2252.2,9.517]
[1773653511041,8.60779346,2253.0,2252.2,18.25347046]
[1773653511936,8.60779346,2253.0,2252.2,9.519]
[1773653512240,8.85130512,2252.8,2252.0,8.73447046]
[1773653514448,5.50043078,2252.7,2251.9,18.60066001]
[1773653514647,8.54727302,2252.6,2251.9,18.60066001]
[1773653517849,8.54727302,2252.6,2251.9,18.60466001]
[1773653519354,8.54727302,2252.6,2252.0,9.07466001]
[1773653520844,8.54727302,2253.0,2252.4,0.98558235]
[1773653521043,8.54727302,2253.0,2252.5,9.07466001]
[1773653521253,8.54727302,2253.4,2252.6,9.07466001]
[1773653521452,8.54727302,2253.2,2252.6,9.07466001]
[1773653522950,8.54727302,2253.2,2252.7,9.07466001]
[1773653525550,8.54727302,2253.2,2252.0,0.98558235]
[1773653525856,8.54727302,2253.0,2252.1,9.07466001]
[1773653526050,8.54727302,2252.8,2252.1,9.07466001]
[1773653526446,8.54727302,2252.8,2252.2,9.547]
[1773653527152,8.54727302,2252.8,2252.1,18.62466001]
[1773653527459,8.54727302,2252.8,2252.2,9.07466001]
[1773653527659,8.54727302,2252.8,2252.2,10.06024236]
[1773653528259,8.54727302,2252.8,2252.2,9.07466001]
[1773653535254,8.61227302,2252.8,2252.2,9.07466001]
[1773653536458,8.61227302,2252.8,2252.2,18.65666001]
[1773653537456,8.61227302,2252.8,2252.2,9.07466001]
[1773653537664,8.61227302,2252.8,2252.2,18.66066001]
[1773653538662,8.61227302,2252.8,2252.3,9.07466001]
[1773653546866,9.713,2253.1,2252.8,8.08317009]
[1773653547167,8.79886794,2253.4,2252.8,8.08317009]
[1773653547567,8.57385274,2253.4,2252.8,8.08317009]
[1773653548970,8.57385274,2253.7,2253.1,8.08317009]
[1773653549271,8.57385274,2253.6,2253.1,8.08317009]
[1773653550771,3.72016298,2254.1,2253.1,8.08317009]
[1773653550772,8.57385274,2254.0,2253.1,8.08317009]
[1773653550969,8.57385274,2253.8,2253.1,8.08317009]
[1773653551173,8.57385274,2253.6,2253.1,8.08317009]